bitfinex/quotes_ETHUSD_20251224
["timestamp","ask_amount","ask_price","bid_price","bid_amount"]
[1766567416328,1.7676,2931.0,2930.4,0.893]
[1766567416527,1.7676,2930.9,2930.1,3.41479285]
[1766567417196,1.7676,2930.9,2930.3,0.002]
[1766567418536,1.7676,2930.9,2930.3,0.03612619]
[1766567419731,1.7676,2930.9,2930.4,3.41250341]
[1766567419928,1.7676,2930.9,2930.3,3.44868622]
[1766567420253,1.94456,2930.9,2930.3,0.002]
[1766567420722,1.94456,2930.9,2930.1,0.002]
[1766567420916,1.94456,2930.9,2930.1,3.41477774]
[1766567421430,1.94456,2930.9,2930.1,3.41483169]
[1766567421628,1.94456,2930.9,2930.2,3.412686]
[1766567421938,1.7676,2930.7,2930.1,6.8277056]
[1766567422234,1.7676,2930.7,2930.2,0.03412736]
[1766567423927,1.7676,2930.7,2930.1,6.8277056]
[1766567424302,1.7686,2931.0,2930.2,0.03412736]
[1766567424808,1.7686,2931.0,2930.1,6.8277056]
[1766567425006,1.7686,2931.0,2930.2,0.77227056]
[1766567425537,1.7686,2931.0,2930.3,3.41261986]
[1766567425926,1.7686,2931.1,2930.4,0.893]
[1766567426237,0.001,2931.0,2930.4,0.893]
[1766567426418,1.7686,2931.0,2930.5,0.77182397]
[1766567427346,0.001,2931.1,2930.5,0.77182397]
[1766567427513,0.001,2931.1,2930.6,0.0341227]
[1766567427714,0.001,2931.1,2930.6,3.44630057]
[1766567428942,0.001,2931.1,2930.6,6.85857109]
[1766567429145,1.7686,2931.1,2930.7,0.76303951]
[1766567429350,1.7686,2931.1,2930.6,3.41217787]
[1766567430015,1.7686,2931.1,2930.4,6.82500143]
[1766567431668,1.7686,2931.1,2930.4,3.41249802]
[1766567432549,1.7686,2931.1,2930.4,6.82500143]
[1766567432933,1.7686,2931.1,2930.5,0.03412386]
[1766567433130,0.001,2931.1,2930.6,0.68591253]
[1766567433345,0.001,2931.1,2930.7,0.03412154]
[1766567434153,0.001,2931.1,2930.7,3.44620345]
[1766567436423,0.001,2931.1,2930.6,4.09811878]
[1766567436627,1.6487,2931.1,2930.6,4.09811878]
[1766567437358,1.6487,2931.1,2930.7,3.82195389]
[1766567437857,1.6487,2931.1,2930.7,0.40981188]
[1766567438062,1.6487,2931.1,2930.6,4.09810677]
[1766567438864,1.6487,2931.1,2930.6,0.68591253]
[1766567439052,1.6487,2931.1,2930.4,0.893]
[1766567439564,1.6487,2931.1,2930.3,3.41256328]
[1766567439946,1.6487,2931.1,2930.4,3.41249435]
[1766567441289,1.6487,2931.1,2930.2,6.82547213]
[1766567441449,1.6487,2931.1,2930.3,0.77204721]
[1766567443803,1.6487,2931.1,2930.3,4.18460085]
[1766567446788,1.6487,2931.1,2930.3,4.18660085]
[1766567447095,1.6487,2931.1,2930.3,7.59922071]
[1766567447972,1.6487,2931.1,2930.3,4.18660085]
[1766567448176,1.6477,2930.9,2930.3,0.002]
[1766567448497,1.6477,2930.9,2930.1,3.41478943]
[1766567451116,1.6477,2930.8,2930.1,0.002]
[1766567461913,1.6487,2930.8,2930.1,0.002]
[1766567464623,0.001,2930.8,2930.1,0.002]
[1766567464792,0.001,2930.8,2930.2,1.13183463]
[1766567464989,0.001,2930.8,2930.3,0.894]
[1766567465524,1.7538,2931.0,2930.2,5.43856459]
[1766567465722,1.7538,2931.0,2930.2,4.30672996]
[1766567465929,7.90115075,2931.1,2930.1,0.002]
[1766567465930,1.7538,2930.7,2930.1,0.002]
[1766567466164,1.7538,2930.7,2930.1,3.41479547]
[1766567467340,7.90115075,2931.1,2930.2,6.82544579]
[1766567467341,1.7538,2931.0,2930.2,6.82544579]
[1766567467637,1.7538,2931.0,2930.1,6.8277056]
[1766567467836,1.7538,2931.0,2930.2,1.47311076]
[1766567468135,0.001,2931.1,2930.3,5.38245834]
[1766567469735,0.001,2931.1,2930.4,6.82500682]
[1766567470544,0.001,2930.8,2930.4,6.82500682]
[1766567472010,0.001,2930.8,2930.4,3.41250341]
[1766567472343,0.001,2930.8,2930.4,4.33172652]
[1766567475345,0.001,2930.8,2930.4,7.74422993]
[1766567478848,1.7548,2931.1,2930.4,7.74422993]
[1766567482025,0.001,2931.1,2930.4,12.23268827]
[1766567484143,1.7548,2931.1,2930.4,12.23268827]
[1766567484342,1.7548,2931.1,2930.5,1.31266883]
[1766567485457,1.7548,2931.1,2930.6,3.41227052]
[1766567486227,1.7548,2931.1,2930.1,0.002]
[1766567486228,1.7538,2930.9,2930.1,0.002]
[1766567486634,1.7538,2930.9,2930.3,3.41256434]
[1766567487355,0.17548,2931.0,2930.5,3.41236497]
[1766567487558,0.17548,2931.0,2930.1,6.8277056]
[1766567487864,1.7538,2931.0,2930.1,7.7207056]
[1766567494658,1.7538,2931.0,2930.1,4.3078528]
[1766567494956,1.7538,2931.0,2930.1,7.7207056]
[1766567498269,1.7538,2931.0,2930.1,12.20916394]
[1766567498474,0.001,2931.3,2930.4,4.48845834]
[1766567498673,0.001,2931.3,2930.5,0.44884583]
[1766567498973,1.7118,2931.3,2930.5,0.44884583]
[1766567499472,1.7118,2931.3,2930.5,1.34184583]
[1766567499672,1.7118,2931.3,2930.6,1.0243785]
[1766567500479,1.7118,2931.3,2930.7,3.41215409]
[1766567500678,1.7118,2931.3,2930.7,6.82430818]
[1766567502286,1.7118,2931.3,2930.7,3.41215409]
[1766567502579,1.88298,2931.3,2930.6,4.43660797]
[1766567503875,1.88298,2931.3,2930.6,7.84887849]
[1766567504180,1.7118,2931.3,2930.6,7.84887849]
[1766567507456,1.7118,2931.3,2930.6,6.82449999]
[1766567507656,1.7118,2931.3,2930.7,1.02433652]
[1766567508451,1.7118,2931.3,2930.8,6.82407532]
[1766567508888,0.001,2931.3,2930.8,6.82407532]
[1766567509092,0.001,2931.3,2930.9,0.68240753]
[1766567509583,1.7118,2931.3,2930.9,0.68240753]
[1766567509787,1.7118,2931.3,2930.8,4.4363497]
[1766567509999,1.7118,2931.3,2930.8,3.41203766]
[1766567510891,1.7118,2931.3,2930.7,6.82430203]
[1766567522909,0.001,2931.3,2930.7,6.82430203]
[1766567523478,0.001,2931.3,2930.8,1.02432953]
[1766567523700,0.001,2931.3,2930.8,2.1504161]
[1766567524302,0.001,2931.3,2930.8,1.12608657]
[1766567524510,0.001,2931.3,2930.8,2.1504161]
[1766567526287,0.001,2931.3,2930.9,6.8238425]
[1766567528609,1.6309,2931.5,2930.9,6.8238425]
[1766567528804,1.6309,2931.5,2931.0,0.89742586]
[1766567530311,1.6309,2931.5,2930.9,6.8238425]
[1766567534028,1.6319,2931.5,2930.9,6.8238425]
[1766567536636,1.6319,2931.5,2930.9,3.41192125]
[1766567538926,1.6319,2931.5,2930.9,6.8238425]
[1766567541830,1.6319,2931.5,2930.9,6.8258425]
[1766567541994,1.6319,2931.5,2930.9,3.41392125]
[1766567542693,1.6319,2931.5,2930.9,6.8258425]
[1766567546832,1.6319,2931.5,2930.9,3.41392125]
[1766567548033,1.6319,2931.5,2930.9,6.8258425]
[1766567548219,1.6319,2931.5,2930.9,3.41392125]
[1766567550234,1.6319,2931.5,2930.9,0.002]
[1766567550526,1.6319,2931.5,2930.9,1.02632953]
[1766567553543,1.6319,2931.5,2931.0,3.41180484]
[1766567554814,1.6319,2931.5,2931.0,4.4360889]
[1766567557547,1.6319,2931.5,2931.0,1.02428406]
[1766567558519,1.6319,2931.5,2931.0,4.43608677]
[1766567560843,1.6319,2931.5,2931.0,1.02428406]
[1766567561016,1.6319,2931.5,2930.9,0.002]
[1766567561516,1.6319,2931.5,2930.8,4.43632645]
[1766567564448,1.6319,2931.5,2930.7,3.41214487]
[1766567564838,1.6319,2931.5,2930.7,4.43652337]
[1766567565448,1.6319,2931.5,2930.8,3.41198235]
[1766567565952,1.7684,2931.0,2930.1,0.002]
[1766567566150,1.7684,2930.5,2930.1,0.002]
[1766567566643,1.7684,2930.5,2929.7,0.002]
[1766567566644,1.7684,2930.3,2929.7,0.002]
[1766567567144,1.7684,2930.3,2929.7,3.41527165]
[1766567567852,1.7684,2930.3,2929.7,0.002]
[1766567568256,1.90503745,2930.3,2929.7,0.002]
[1766567568422,1.7684,2930.1,2929.7,0.002]
[1766567568931,1.7684,2930.0,2929.7,0.002]
[1766567570935,1.7684,2930.0,2929.5,0.002]
[1766567571143,1.7684,2930.0,2929.4,0.002]
[1766567572325,1.7684,2930.0,2929.2,0.002]
[1766567572327,1.78203001,2929.9,2929.2,0.002]
[1766567572543,2.04953301,2929.9,2929.2,0.002]
[1766567572751,1.7684,2929.8,2929.2,0.002]
[1766567572963,1.7684,2929.6,2929.2,0.002]
[1766567573454,1.7684,2929.6,2929.4,0.002]
[1766567574421,0.894,2929.7,2929.4,0.002]
[1766567574748,2.6624,2929.8,2929.4,0.002]
[1766567576454,3.05788415,2929.8,2929.4,0.002]
[1766567576836,2.16388415,2929.8,2929.4,0.002]
[1766567577030,0.13665846,2929.8,2929.4,0.002]
[1766567577363,1.7684,2930.0,2929.4,0.002]
[1766567579326,1.7684,2930.2,2929.4,0.002]
[1766567579653,2.79323342,2930.5,2929.4,4.49339732]
[1766567579955,2.6624,2930.5,2929.5,7.851832]
[1766567580159,1.7684,2930.4,2929.6,1.56565071]
[1766567580949,0.001,2930.0,2929.6,1.56565071]
[1766567581832,0.001,2930.0,2929.7,3.41331876]
[1766567582027,1.7398,2930.0,2929.6,1.56565071]
[1766567582227,1.7398,2930.0,2929.4,3.41560937]
[1766567582535,1.7398,2930.0,2929.5,4.43832635]
[1766567582739,1.7398,2930.0,2929.5,3.41354895]
[1766567582937,1.7398,2930.0,2929.6,3.41342811]
[1766567583142,0.001,2930.0,2929.6,3.41342811]
[1766567583354,0.894,2930.2,2929.6,3.41342811]
[1766567584068,1.7388,2930.2,2929.6,3.41342811]
[1766567584451,1.7388,2930.2,2929.5,4.09643923]
[1766567585273,1.7388,2930.2,2929.5,4.08620033]
[1766567586856,1.7388,2930.2,2929.5,7.49975213]
[1766567587070,1.7388,2930.2,2929.6,0.85265295]
[1766567587942,1.7398,2930.2,2929.6,0.85265295]
[1766567588368,1.7398,2930.2,2929.7,3.41331876]
[1766567594389,0.001,2930.2,2929.7,3.41331876]
[1766567594566,0.001,2930.2,2929.7,4.43804366]
[1766567594765,0.001,2930.2,2929.8,0.87041174]
[1766567595092,1.7398,2930.2,2929.8,0.87041174]
[1766567596300,1.7398,2930.2,2929.8,4.28358008]
[1766567597762,1.7398,2930.2,2929.7,1.0247249]
[1766567598081,1.7398,2930.2,2929.5,1.02678091]
[1766567598379,1.7398,2930.2,2929.5,4.44027692]
[1766567601271,2.6338,2930.2,2929.5,7.85382872]
[1766567601481,2.6338,2930.2,2929.6,1.2347226]
[1766567601785,1.7388,2930.5,2929.6,1.2347226]
[1766567601984,2.6328,2930.5,2929.6,1.2347226]
[1766567602287,2.6328,2930.5,2929.7,1.0246969]
[1766567602480,2.6328,2930.5,2929.9,3.41308577]
[1766567603184,1.7388,2930.5,2929.9,6.82617154]
[1766567603590,0.894,2930.7,2929.9,7.85081244]
[1766567603791,1.7388,2930.8,2929.9,7.85081244]
[1766567604088,1.7388,2930.7,2929.9,7.85081244]
[1766567604258,1.7388,2930.7,2930.0,0.80767544]
[1766567604459,1.7388,2930.7,2930.1,3.4128528]
[1766567608597,1.7388,2930.7,2930.1,6.8257056]
[1766567610164,1.7388,2931.1,2930.1,6.8257056]
[1766567610405,1.7388,2930.9,2930.1,6.8257056]
[1766567610579,1.7388,2930.9,2930.2,2.23695428]
[1766567610580,0.001,2930.7,2930.2,2.23695428]
[1766567611793,0.001,2930.7,2930.3,3.41261986]
[1766567612591,0.001,2930.7,2930.4,1.02447644]
[1766567613901,0.001,2930.7,2930.4,4.43695097]
[1766567615304,0.001,2930.7,2930.4,1.02447644]
[1766567615692,1.8171,2930.7,2929.6,3.83]
[1766567615870,1.8161,2930.5,2929.8,1.0246409]
[1766567616606,1.8161,2930.5,2929.7,3.41324349]
[1766567619086,1.8171,2930.5,2929.7,3.41324349]
[1766567619477,1.8161,2930.3,2929.7,3.41324349]
[1766567619803,1.8161,2930.3,2929.6,8.2680362]
[1766567620004,1.8161,2930.3,2929.6,3.4133778]
[1766567620206,2.08721,2930.3,2929.6,3.4133778]
[1766567620607,2.08721,2930.3,2929.5,0.002]
[1766567620797,1.8161,2930.2,2929.5,0.002]
[1766567625308,1.8161,2930.0,2929.5,0.002]
[1766567627077,1.8161,2930.0,2929.4,0.002]
[1766567627281,4.3068653,2930.1,2929.4,0.002]
[1766567627282,1.8161,2929.8,2929.4,0.002]
[1766567627690,1.8161,2929.8,2929.5,0.002]
[1766567641036,1.8161,2929.8,2929.2,0.002]
[1766567642334,2.7101,2929.8,2929.2,0.002]
[1766567643135,2.7101,2929.8,2929.2,3.4159014]
[1766567643536,2.7101,2929.8,2929.5,0.002]
[1766567643737,2.98211,2929.8,2929.5,0.002]
[1766567646384,1.8171,2929.8,2929.5,0.002]
[1766567648032,0.001,2929.8,2929.5,0.03613551]
[1766567648939,0.001,2929.8,2929.5,0.002]
[1766567649643,0.001,2929.8,2929.5,3.4496408]
[1766567650536,0.001,2929.8,2929.5,4.13597171]
[1766567657257,0.001,2929.8,2929.5,3.4496408]
[1766567659067,3.42614295,2930.4,2929.6,0.894]
[1766567659068,1.712,2930.4,2929.6,0.894]
[1766567660371,1.712,2930.4,2929.7,6.82663752]
[1766567660669,0.001,2930.5,2929.7,6.82663752]
[1766567660834,0.001,2930.5,2929.8,0.77206375]
[1766567661861,0.001,2930.5,2929.9,0.03413085]
[1766567663065,0.001,2930.5,2930.0,6.82593856]
[1766567663274,0.001,2930.7,2930.1,0.03412852]
[1766567665774,0.001,2930.7,2930.2,6.82547266]
[1766567665775,0.001,2930.5,2930.2,6.82547266]
[1766567665978,0.001,2930.5,2930.3,0.72008631]
[1766567666975,0.001,2931.0,2930.3,0.72008631]
[1766567667180,1.713,2931.0,2930.3,0.68596012]
[1766567668545,1.713,2931.0,2930.4,3.41250341]
[1766567668747,0.001,2931.4,2930.5,0.92812386]
[1766567669283,1.713,2931.4,2930.5,0.92812386]
[1766567670060,1.713,2931.4,2930.5,0.894]
[1766567670593,1.713,2931.4,2930.6,6.82454104]
[1766567671257,1.713,2931.4,2930.7,0.03412154]
[1766567671766,1.713,2931.4,2930.7,0.8093878]
[1766567672688,0.001,2931.7,2930.7,0.8093878]
[1766567672689,0.001,2931.7,2930.8,10.23611298]
[1766567672900,0.001,2931.7,2930.9,0.894]
[1766567673972,0.001,2931.3,2930.9,0.894]
[1766567674881,0.001,2931.3,2931.0,6.82360968]
[1766567675062,0.001,2931.3,2931.1,0.77176097]
[1766567675264,0.001,2931.7,2931.0,3.41180484]
[1766567675265,1.5112611,2931.4,2931.0,3.41180484]
[1766567675885,1.5112611,2931.4,2930.7,3.41215313]
[1766567676494,1.5112611,2931.4,2930.9,3.41190287]
[1766567676864,1.5112611,2931.4,2930.5,6.82472923]
[1766567677182,1.5112611,2931.4,2930.5,10.23711619]
[1766567677496,1.5112611,2931.4,2930.6,1.09882217]
[1766567677897,1.5112611,2931.4,2930.7,0.03412154]
[1766567679296,1.5112611,2931.4,2930.8,6.82407532]
[1766567679498,1.5112611,2931.4,2930.9,0.03411921]
[1766567680080,1.50102709,2931.4,2930.9,0.03411921]
[1766567681412,1.50202709,2931.4,2931.0,3.41180484]
[1766567682698,1.50202709,2931.4,2930.7,6.82430818]
[1766567682895,1.50202709,2931.4,2930.8,0.82643341]
[1766567683696,1.50202709,2931.4,2930.9,3.41192125]
[1766567683924,1.50202709,2931.4,2931.0,0.03411804]
[1766567686005,1.50202709,2931.4,2931.0,3.4458442]
[1766567686217,0.001,2931.4,2931.0,3.4458442]
[1766567686376,0.001,2931.4,2931.1,0.34458442]
[1766567687997,1.46700168,2931.6,2931.1,3.7562401]
[1766567688496,0.001,2931.4,2931.1,3.7562401]
[1766567689708,0.001,2931.4,2931.1,3.79035698]
[1766567691002,0.001,2931.4,2931.1,7.20204542]
[1766567691205,0.001,2931.7,2931.2,0.72020454]
[1766567691804,1.5122,2931.7,2931.2,0.72020454]
[1766567692506,1.5122,2931.7,2931.3,3.41145566]
[1766567695207,1.5122,2931.7,2931.2,4.13175999]
[1766567695208,1.5122,2931.7,2931.2,0.72020454]
[1766567695410,1.5122,2931.7,2931.0,3.4117692]
[1766567696313,1.5122,2931.7,2931.2,3.41155442]
[1766567697513,1.5122,2931.7,2930.9,6.8258425]
[1766567704193,1.5122,2931.7,2930.9,10.23776375]
[1766567704391,0.001,2931.9,2930.9,10.23776375]
[1766567704597,0.001,2931.9,2931.0,5.62282105]
[1766567704890,1.5335,2931.7,2931.0,5.62282105]
[1766567705111,0.001,2931.9,2931.0,5.62282105]
[1766567705316,1.5335,2931.9,2931.0,5.58870301]
[1766567705694,1.5335,2931.9,2931.0,1.10300768]
[1766567705928,1.5335,2931.9,2931.1,1.13407714]
[1766567706441,1.5335,2931.9,2931.1,4.54572013]
[1766567706620,1.5325,2931.7,2930.9,0.002]
[1766567707201,1.5325,2931.7,2930.9,3.41383563]
[1766567707390,1.5325,2931.7,2930.9,0.002]
[1766567707591,1.5325,2931.7,2930.9,3.41389619]
[1766567707822,1.5325,2931.5,2930.9,3.41389619]
[1766567708126,1.5325,2931.5,2930.9,0.002]
[1766567718040,1.5325,2931.5,2930.9,3.41392125]
[1766567718241,1.5325,2931.5,2931.0,0.03411804]
[1766567719339,1.5325,2931.5,2931.1,0.03411688]
[1766567719545,1.5325,2931.5,2931.0,0.03411804]
[1766567719914,1.5325,2931.5,2931.0,0.72012145]
[1766567720326,1.5325,2931.5,2930.9,0.002]
[1766567720527,1.5325,2931.5,2930.9,3.41386198]
[1766567720728,1.5325,2931.5,2931.0,3.41178827]
[1766567721477,0.001,2931.7,2931.1,0.03411688]
[1766567722244,1.5335,2931.7,2931.1,0.03411688]
[1766567723116,1.5335,2931.7,2930.9,3.41386573]
[1766567723352,1.5335,2931.7,2931.0,4.09432567]
[1766567723813,1.5335,2931.7,2931.1,3.44580192]
[1766567725840,1.5335,2931.7,2931.1,0.03411688]
[1766567727552,1.5335,2931.7,2931.1,3.44578389]
[1766567728054,1.5335,2931.7,2931.1,0.03411688]
[1766567728452,1.5335,2931.7,2931.0,4.09633131]
[1766567730051,1.5335,2931.7,2931.1,0.03411688]
[1766567730638,1.5335,2931.7,2931.1,3.44578494]
[1766567731959,1.5335,2931.7,2931.1,6.85747338]
[1766567732149,0.001,2931.7,2931.0,6.82560968]
[1766567732349,0.001,2931.7,2931.1,0.03411688]
[1766567733073,0.001,2931.7,2931.0,6.82560968]
[1766567734460,0.001,2931.7,2931.0,7.71960968]
[1766567734666,0.001,2931.7,2931.1,1.56192095]
[1766567736963,0.001,2931.7,2931.2,3.41157205]
[1766567738864,1.3969,2931.7,2931.2,3.41157205]
[1766567741185,1.3969,2931.7,2931.1,3.41163634]
[1766567744280,1.3969,2931.7,2931.2,0.03411572]
[1766567746281,1.3969,2931.7,2931.2,3.44563838]
[1766567748184,0.001,2931.7,2931.2,7.63254242]
[1766567748388,0.001,2931.7,2931.2,7.5984267]
[1766567749288,0.001,2931.7,2931.2,4.18685465]
[1766567750294,0.001,2931.7,2931.2,7.5984267]
[1766567750590,0.001,2931.7,2931.2,4.18685465]
[1766567750790,0.001,2931.7,2931.3,0.75985138]
[1766567753002,0.001,2931.7,2931.3,4.17126674]
[1766567754589,0.001,2931.7,2931.1,3.411677]
[1766567754590,1.3959,2931.6,2931.0,0.896]
[1766567754889,1.3959,2931.6,2931.0,3.41378894]
[1766567755090,1.3959,2931.6,2931.0,0.002]
[1766567756094,1.3959,2931.6,2930.9,0.002]
[1766567756095,1.3959,2931.5,2930.9,0.002]
[1766567760998,1.3959,2931.5,2930.9,0.03611921]
[1766567762283,1.2888,2931.4,2930.9,0.002]
[1766567774916,1.2898,2931.4,2930.9,0.002]
[1766567781914,1.2898,2931.4,2930.9,3.41392125]
[1766567782221,1.2898,2931.4,2931.0,0.03411804]
[1766567782791,1.2898,2931.4,2930.9,3.41392125]
[1766567783819,1.2898,2931.4,2930.9,0.68458852]
[1766567784016,1.2898,2931.4,2931.0,0.03411804]
[1766567784214,1.2898,2931.4,2930.9,0.002]
[1766567786314,1.2898,2931.4,2930.9,0.03611921]
[1766567787421,1.2898,2931.4,2930.9,0.002]
[1766567789436,0.001,2931.4,2930.9,0.002]
[1766567790533,0.001,2931.4,2930.9,0.71875003]
[1766567793528,0.001,2931.4,2930.9,4.09649517]
[1766567793733,1.3614,2931.4,2930.9,3.41386435]
[1766567795733,1.3614,2931.4,2930.9,0.002]
[1766567801327,0.001,2931.4,2930.9,0.002]
[1766567801507,1.2553,2931.7,2930.9,0.002]
[1766567803143,6.82303948,2931.7,2930.9,0.002]
[1766567803331,1.2543,2931.5,2930.0,3.41291971]
[1766567803642,1.2543,2931.3,2930.2,3.41265785]
[1766567803935,1.2543,2931.1,2929.9,0.002]
[1766567804119,1.2543,2930.9,2930.1,3.41278056]
[1766567804306,1.2543,2930.7,2930.0,1.02454992]
[1766567804507,1.2543,2930.5,2930.1,3.4128528]
[1766567804709,1.27597477,2930.4,2929.9,3.4150261]
[1766567804908,1.27597477,2930.4,2929.9,0.002]
[1766567805240,1.27597477,2930.4,2930.0,0.002]
[1766567806040,1.27597477,2930.4,2929.7,0.002]
[1766567806344,1.2543,2930.2,2929.7,0.002]
[1766567806638,1.2543,2930.0,2929.7,0.002]
[1766567809327,1.27597477,2929.9,2929.7,0.002]
[1766567811711,1.2543,2929.9,2929.7,0.002]
[1766567812031,1.2543,2930.1,2929.7,0.002]
[1766567812238,0.02167477,2930.0,2929.7,0.002]
[1766567815048,1.27597477,2930.0,2929.7,0.002]
[1766567817042,1.27597477,2930.0,2929.6,0.13863698]
[1766567817245,1.27597477,2930.0,2929.5,0.002]
[1766567818317,1.27597477,2930.0,2929.6,3.41341192]
[1766567819252,1.27597477,2930.0,2929.5,0.002]
[1766567820140,1.27597477,2930.0,2929.3,6.82133571]
[1766567820340,1.27697477,2930.0,2929.3,8.39680343]
[1766567822156,0.001,2932.5,2931.0,0.01705611]
[1766567822449,0.894,2933.4,2931.8,4.49055882]
[1766567822650,0.894,2933.4,2931.9,0.03410757]
[1766567822651,1.2583,2932.8,2931.9,0.03410757]
[1766567822948,1.2583,2932.6,2931.9,0.03410757]
[1766567823149,1.2583,2932.6,2932.0,1.02393446]
[1766567823531,1.2583,2932.5,2932.0,3.446e-05]
[1766567824149,1.2583,2932.5,2931.5,3.41115083]
[1766567824343,1.2583,2932.5,2931.6,1.02406728]
[1766567824543,1.2583,2932.3,2931.3,3.41142587]
[1766567824753,1.2583,2932.3,2931.5,1.02413021]
[1766567825251,1.2583,2932.3,2931.5,4.42510778]
[1766567825453,1.2583,2932.3,2931.6,3.4110071]
[1766567825748,1.2583,2932.3,2931.5,4.42508713]
[1766567825955,1.2583,2932.1,2931.5,4.42508713]
[1766567827446,1.2583,2932.1,2931.5,1.01389829]
[1766567828255,1.2583,2932.1,2931.4,3.4112668]
[1766567828456,1.2593,2932.1,2931.4,3.4112668]
[1766567828653,1.2593,2932.1,2931.5,3.4112018]
[1766567828826,1.2583,2931.9,2931.5,3.4112018]
[1766567829226,1.2583,2931.9,2931.4,3.41129836]
[1766567829522,1.2583,2931.9,2931.2,3.41150268]
[1766567830266,1.24806808,2931.9,2931.2,3.41150268]
[1766567830826,1.24806808,2931.9,2931.1,1.02423161]
[1766567830827,1.2583,2931.7,2931.1,4.43589988]
[1766567831045,1.2583,2931.5,2931.1,4.43589988]
[1766567831247,1.2583,2931.5,2931.2,3.41157117]
[1766567831765,1.2583,2931.5,2931.1,1.02423161]
[1766567831766,1.2583,2931.5,2931.1,4.43587176]
[1766567832776,1.2583,2931.5,2931.1,3.41164015]
[1766567833925,1.2583,2931.5,2931.0,4.43601013]
[1766567835164,1.24806773,2931.5,2931.0,7.84781497]
[1766567835531,0.893,2931.8,2931.0,7.84781497]
[1766567835732,2.1513,2931.8,2931.1,0.03411688]
[1766567836031,2.39021658,2931.8,2931.2,3.41157205]
[1766567836267,1.2583,2931.8,2931.2,6.8231441]
[1766567836580,1.2583,2931.8,2931.3,0.03411455]
[1766567837259,1.2583,2932.0,2931.3,0.03411455]
[1766567837674,1.2583,2932.0,2931.3,1.05827273]
[1766567837871,1.2583,2932.0,2931.3,1.02415818]
[1766567838861,1.2583,2932.0,2931.4,3.41133929]
[1766567840481,1.2583,2932.0,2931.4,6.82267858]
[1766567840851,0.001,2932.1,2931.4,7.60736226]
[1766567841179,0.001,2932.1,2931.4,8.63147149]
[1766567842782,0.001,2932.1,2931.4,8.63347149]
[1766567843169,1.2583,2932.0,2931.4,0.002]
[1766567843370,1.2583,2931.9,2931.2,3.41151227]
[1766567844587,1.2583,2931.9,2931.0,4.43802559]
[1766567844588,1.2583,2931.9,2931.3,3.41144015]
[1766567845281,1.2583,2931.9,2931.1,6.82334523]
[1766567845489,1.2583,2931.7,2931.1,6.82334523]
[1766567848480,1.2583,2931.7,2931.1,3.41165679]
[1766567849356,3.41154536,2932.1,2931.1,3.41165679]
[1766567849357,0.001,2933.3,2931.6,0.9496]
[1766567849559,0.001,2933.3,2932.5,0.9486]
[1766567849862,1.27535611,2933.0,2932.5,0.9486]
[1766567850466,1.27535611,2933.0,2932.6,1.02378071]
[1766567850787,1.27535611,2933.0,2932.2,0.893]
[1766567850788,1.27535611,2932.8,2932.4,3.41008585]
[1766567851196,1.27535611,2932.8,2932.5,3.41004851]
[1766567851682,1.27535611,2932.8,2932.2,1.3491]
[1766567851860,1.27535611,2932.8,2932.2,4.75944229]
[1766567852690,1.3079,2932.7,2932.0,1.02385409]
[1766567852894,1.3079,2932.7,2931.9,1.3527]
[1766567852895,1.3079,2932.5,2932.1,3.41045499]
[1766567853060,1.3079,2932.5,2932.1,3.41052207]
[1766567853261,1.32495611,2932.5,2931.9,1.3527]
[1766567853459,1.32495611,2932.5,2932.0,3.41060458]
[1766567853790,1.32495611,2932.3,2931.6,3.41108446]
[1766567853994,1.32495611,2932.3,2930.5,3.41232592]
[1766567853995,1.3079,2932.1,2931.3,4.76413968]
[1766567854282,1.32495611,2932.1,2931.3,4.76413968]
[1766567854655,1.32495611,2932.1,2931.5,6.82244584]
[1766567854859,1.32495611,2932.1,2931.5,3.41122292]
[1766567856295,1.3079,2932.1,2931.4,4.76594173]
[1766567856663,1.3079,2932.1,2931.4,8.17728102]
[1766567856864,0.893,2932.0,2931.4,8.17728102]
[1766567857283,0.893,2932.0,2931.5,0.03411222]
[1766567857764,0.893,2932.0,2931.5,1.39101222]
[1766567858466,2.2871,2932.0,2931.6,3.41110656]
[1766567858664,2.53798956,2932.0,2931.6,3.41110656]
[1766567859890,1.64498956,2932.0,2931.6,3.41110656]
[1766567860095,2.53798956,2932.0,2931.6,3.41110656]
[1766567860596,0.01705611,2932.3,2931.5,1.3569]
[1766567860794,0.893,2932.1,2931.5,1.3569]
[1766567861468,2.2871,2932.1,2931.5,1.3569]
[1766567862179,0.01705611,2932.3,2931.7,1.3569]
[1766567862180,2.2871,2932.3,2931.7,1.3569]
[1766567862369,2.2871,2932.3,2931.4,1.3589]
[1766567862370,1.3941,2932.1,2931.4,1.3589]
[1766567862570,0.01705611,2932.0,2931.4,1.3589]
[1766567862892,1.3941,2931.9,2931.4,3.41333299]
[1766567863600,2.2871,2931.9,2931.4,0.002]
[1766567863900,1.3941,2931.8,2931.4,0.002]
[1766567865696,2.2871,2931.8,2931.4,0.002]
[1766567866771,1.3941,2931.7,2931.4,0.002]
[1766567868395,1.3941,2931.7,2931.2,4.76846754]
[1766567869194,1.3941,2931.7,2931.1,3.41163088]
[1766567869501,1.64585156,2931.7,2931.1,3.41163088]
[1766567869797,1.64585156,2931.7,2931.2,3.41155869]
[1766567871500,1.64585156,2931.7,2931.4,0.002]
[1766567876372,1.64585156,2931.7,2931.0,3.41369371]
[1766567876780,1.64585156,2931.7,2930.8,4.76887943]
[1766567876781,1.3941,2931.5,2930.8,4.76891035]
[1766567877115,1.3941,2931.3,2931.0,3.4117453]
[1766567877474,1.3941,2931.3,2930.8,4.76883311]
[1766567877475,1.3941,2931.3,2930.8,1.3569]
[1766567877674,1.3941,2931.3,2930.8,4.76886605]
[1766567877906,1.3941,2931.3,2930.9,3.41189531]
[1766567878107,1.3941,2931.3,2930.8,4.76885945]